fUST/lending_fUST_20250405
["ID","MTS","AMOUNT","RATE_DAILY","PERIOD"]
[357162002,1743829840108,-500.0,0.00020371,2]
[357162004,1743829840119,-500.0,0.00020371,2]
[357162006,1743829840131,-580.37,0.00020371,2]
[357162008,1743829840141,-500.0,0.00020371,2]
[357162010,1743829840150,-512.44892762,0.00020371,2]
[357162012,1743829840160,-500.0,0.00020371,2]
[357162014,1743829840169,-384.07393204,0.00020371,2]
[357162015,1743829840178,-500.0,0.00020373,2]
[357162017,1743829840188,-500.0,0.00020373,2]
[357162019,1743829840198,-3000.0,0.00020376,2]
[357162021,1743829840207,-283.92601005,0.00020384,2]
[357162023,1743829840216,-500.0,0.00020395,2]
[357162024,1743829840226,-500.0,0.00020395,2]
[357162026,1743829840235,-202.71575814,0.00020395,2]
[357162028,1743829840244,-584.07150235,0.00020395,2]
[357162030,1743829840253,-268.53725086,0.00020396,3]
[357162032,1743829840263,-476.6200755,0.00020396,3]
[357162033,1743829840273,-407.131846,0.00020396,2]
[357162034,1743829840282,-500.0,0.00020396,2]
[357162035,1743829840292,-348.17301797,0.00020396,2]
[357162036,1743829840302,-500.0,0.00020396,2]
[357162037,1743829840318,-512.99492136,0.00020396,2]
[357162038,1743829840328,-500.0,0.00020396,2]
[357162039,1743829840338,-516.05263715,0.00020396,2]
[357162040,1743829840348,-500.0,0.00020396,2]
[357162041,1743829840358,-500.0,0.00020396,2]
[357162042,1743829840369,-500.0,0.00020396,2]
[357162043,1743829840379,-500.0,0.00020396,2]
[357162044,1743829840391,-500.0,0.00020396,2]
[357162045,1743829840401,-500.0,0.00020396,2]
[357162046,1743829840411,-500.0,0.00020396,2]
[357162047,1743829840420,-359.87622723,0.00020396,2]
[357162048,1743829840430,-500.0,0.00020396,2]
[357162049,1743829840440,-5463.48,0.00020396,2]
[357162050,1743829840450,-798.7,0.00020396,2]
[357162051,1743829840460,-574.50001074,0.00020396,2]
[357162052,1743829840471,-385.0,0.00020396,2]
[357162053,1743829840481,-151.0,0.00020396,2]
[357162054,1743829840491,-151.0,0.00020396,2]
[357162055,1743829840501,-151.0,0.00020396,2]
[357162056,1743829840511,-151.0,0.00020396,2]
[357162057,1743829840520,-151.0,0.00020396,2]
[357162058,1743829840530,-151.0,0.00020396,2]
[357162059,1743829840540,-151.0,0.00020396,2]
[357162060,1743829840550,-151.0,0.00020396,2]
[357162061,1743829840560,-151.0,0.00020396,2]
[357162062,1743829840569,-151.0,0.00020396,2]
[357162063,1743829840579,-151.0,0.00020396,2]
[357162064,1743829840590,-151.0,0.00020396,2]
[357162065,1743829840600,-151.0,0.00020396,2]
[357162066,1743829840610,-151.0,0.00020396,2]
[357162067,1743829840620,-151.0,0.00020396,2]
[357162068,1743829840629,-151.0,0.00020396,2]
[357162069,1743829840639,-151.0,0.00020396,2]
[357162070,1743829840649,-151.0,0.00020396,2]
[357162071,1743829840658,-151.0,0.00020396,2]
[357162072,1743829840668,-259.4966,0.00020396,2]
[357162073,1743829840677,-151.0,0.00020396,2]
[357162074,1743829840687,-151.0,0.00020396,2]
[357162075,1743829840697,-151.0,0.00020396,2]
[357162076,1743829840707,-223.039885,0.00020396,2]
[357162077,1743829840716,-151.0,0.00020396,2]
[357162078,1743829840726,-250.974768,0.00020396,2]
[357162079,1743829840736,-151.0,0.00020396,2]
[357162080,1743829840746,-151.0,0.00020396,2]
[357162081,1743829840756,-151.0,0.00020396,2]
[357162082,1743829840765,-151.0,0.00020396,2]
[357162083,1743829840775,-151.0,0.00020396,2]
[357162084,1743829840785,-151.0,0.00020396,2]
[357162085,1743829840795,-151.0,0.00020396,2]
[357162086,1743829840805,-151.0,0.00020396,2]
[357162087,1743829840814,-151.0,0.00020396,2]
[357162088,1743829840824,-151.0,0.00020396,2]
[357162089,1743829840834,-151.0,0.00020396,2]
[357162090,1743829840984,-151.0,0.00020396,2]
[357162091,1743829840995,-189.912021,0.00020396,2]
[357162092,1743829841004,-269.25804,0.00020396,2]
[357162093,1743829841014,-269.25804,0.00020396,2]
[357162094,1743829841025,-269.25804,0.00020396,2]
[357162095,1743829841035,-269.25804,0.00020396,2]
[357162096,1743829841044,-269.25804,0.00020396,2]
[357162097,1743829841053,-269.25804,0.00020396,2]
[357162098,1743829841063,-269.25804,0.00020396,2]
[357162099,1743829841072,-269.25804,0.00020396,2]
[357162100,1743829841081,-269.25804,0.00020396,2]
[357162101,1743829841091,-269.25804,0.00020396,2]
[357162102,1743829841100,-269.25804,0.00020396,2]
[357162103,1743829841110,-269.25804,0.00020396,2]
[357162104,1743829841120,-269.25804,0.00020396,2]
[357162105,1743829841129,-269.25804,0.00020396,2]
[357162106,1743829841139,-151.0,0.00020396,2]
[357162107,1743829841148,-151.0,0.00020396,2]
[357162108,1743829841157,-151.0,0.00020396,2]
[357162109,1743829841166,-151.0,0.00020396,2]
[357162110,1743829841176,-151.0,0.00020396,2]
[357162111,1743829841185,-151.0,0.00020396,2]
[357162112,1743829841194,-151.0,0.00020396,2]
[357162113,1743829841204,-164.244601,0.00020396,2]
[357162114,1743829841214,-151.0,0.00020396,2]
[357162115,1743829841224,-151.0,0.00020396,2]
[357162116,1743829841233,-151.0,0.00020396,2]
[357162117,1743829841243,-151.0,0.00020396,2]
[357162118,1743829841253,-151.0,0.00020396,2]
[357162119,1743829841262,-151.0,0.00020396,2]
[357162120,1743829841272,-156.344999,0.00020396,2]
[357162121,1743829841281,-576.963,0.00020396,2]
[357162122,1743829841291,-576.963,0.00020396,2]
[357162123,1743829841300,-576.963,0.00020396,2]
[357162124,1743829841314,-576.963,0.00020396,2]
[357162125,1743829841323,-576.963,0.00020396,2]
[357162126,1743829841333,-576.963,0.00020396,2]
[357162127,1743829841343,-576.963,0.00020396,2]
[357162128,1743829841354,-576.963,0.00020396,2]
[357162129,1743829841363,-576.963,0.00020396,2]
[357162130,1743829841372,-576.963,0.00020396,2]
[357162131,1743829841382,-235.715919,0.00020396,2]
[357162132,1743829841393,-329.049485,0.00020396,2]
[357162133,1743829841403,-329.049485,0.00020396,2]
[357162134,1743829841412,-329.049485,0.00020396,2]
[357162135,1743829841423,-329.049485,0.00020396,2]
[357162136,1743829841433,-280.33996,0.00020396,2]
[357162137,1743829841447,-329.049485,0.00020396,2]
[357162138,1743829841463,-280.33996,0.00020396,2]
[357162139,1743829841473,-329.049485,0.00020396,2]
[357162140,1743829841484,-280.33996,0.00020396,2]
[357162141,1743829841494,-329.049485,0.00020396,2]
[357162142,1743829841504,-280.33996,0.00020396,2]
[357162143,1743829841515,-280.33996,0.00020396,2]
[357162144,1743829841525,-280.33996,0.00020396,2]
[357162145,1743829841535,-280.33996,0.00020396,2]
[357162146,1743829841545,-329.049485,0.00020396,2]
[357162147,1743829841555,-329.049485,0.00020396,2]
[357162148,1743829841566,-329.049485,0.00020396,2]
[357162149,1743829841576,-329.049485,0.00020396,2]
[357162150,1743829841586,-329.049485,0.00020396,2]
[357162151,1743829841598,-329.049485,0.00020396,2]
[357162152,1743829841608,-329.049485,0.00020396,2]
[357162153,1743829841618,-280.33996,0.00020396,2]
[357162154,1743829841628,-280.33996,0.00020396,2]
[357162155,1743829841638,-280.33996,0.00020396,2]
[357162156,1743829841657,-280.33996,0.00020396,2]
[357162157,1743829841668,-280.33996,0.00020396,2]
[357162158,1743829841679,-280.33996,0.00020396,2]
[357162159,1743829841689,-280.33996,0.00020396,2]
[357162160,1743829841700,-151.0,0.00020396,2]
[357162161,1743829841710,-151.0,0.00020396,2]
[357162162,1743829841722,-151.0,0.00020396,2]
[357162163,1743829841733,-151.0,0.00020396,2]
[357162164,1743829841743,-154.23448,0.00020396,2]
[357162165,1743829841753,-151.0,0.00020396,2]
[357162166,1743829841764,-153.421406,0.00020396,2]
[357162167,1743829841776,-156.99834,0.00020396,2]
[357162168,1743829841786,-159.19721,0.00020396,2]
[357162169,1743829841796,-151.0,0.00020396,2]
[357162170,1743829841806,-151.0,0.00020396,2]
[357162171,1743829841816,-429.901457,0.00020396,2]
[357162172,1743829841826,-429.901457,0.00020396,2]
[357162173,1743829841836,-429.901457,0.00020396,2]
[357162174,1743829841846,-429.901457,0.00020396,2]
[357162175,1743829841856,-429.901457,0.00020396,2]
[357162176,1743829841866,-429.901457,0.00020396,2]
[357162177,1743829841876,-429.901457,0.00020396,2]
[357162178,1743829841886,-429.901457,0.00020396,2]
[357162179,1743829841896,-429.901457,0.00020396,2]
[357162180,1743829841906,-429.901457,0.00020396,2]
[357162181,1743829841916,-429.901457,0.00020396,2]
[357162182,1743829841927,-429.901457,0.00020396,2]
[357162183,1743829841938,-429.901457,0.00020396,2]
[357162184,1743829841949,-429.901457,0.00020396,2]
[357162185,1743829841959,-429.901457,0.00020396,2]
[357162186,1743829841969,-429.901457,0.00020396,2]
[357162187,1743829841979,-429.901457,0.00020396,2]
[357162188,1743829841989,-429.901457,0.00020396,2]
[357162189,1743829841998,-2322.738747,0.00020396,2]
[357162190,1743829842008,-2322.738747,0.00020396,2]
[357162191,1743829842019,-2322.738747,0.00020396,2]
[357162192,1743829842029,-297.17773739,0.00020396,2]
[357162222,1743830190390,-200.0,0.00024658,15]
[357162223,1743830190416,-12555.0,0.000249,14]
[357162224,1743830190440,-3486.9,0.000249,14]
[357162225,1743830190465,-2573.42,0.000249,14]
[357162226,1743830190489,-1375.82,0.000249,14]
[357162227,1743830190514,-171.79414135,0.00025,60]
[357162228,1743830217719,1238.23,0.000248,14]
[357162229,1743830250591,11299.5,0.000248,14]
[357162230,1743830370553,2316.08,0.000248,14]
[357162231,1743830370637,3138.21,0.000248,14]
[357162232,1743830389069,10169.55,0.000248,14]
[357162233,1743830398216,1081.0573042,0.00025,10]
[357162234,1743830415874,1114.41,0.000248,14]
[357162235,1743830526721,9152.6,0.000248,14]
[357162236,1743830569021,3138.21,0.000248,14]
[357162237,1743830569368,2316.08,0.000248,14]
[357162238,1743830614217,1002.97,0.000248,14]
[357162265,1743830664574,8237.34,0.000248,14]
[357162269,1743830767504,2510.57,0.000248,14]
[357162270,1743830767660,1852.86,0.000248,14]
[357162272,1743830804378,7413.6,0.000248,14]
[357162273,1743830812810,902.67,0.000248,14]
[357162274,1743830831789,20001.0,0.00025,10]
[357162286,1743830942154,6672.24,0.000248,14]
[357162290,1743830966148,2259.51,0.000248,14]
[357162291,1743830966634,1667.58,0.000248,14]
[357162295,1743831012285,812.4,0.000248,14]
[357162361,1743831046236,-207.5113899,0.00016,2]
[357162362,1743831046246,-157.30580496,0.0002,2]
[357162363,1743831046256,-600.09330122,0.00020298,2]
[357162364,1743831046267,-500.0,0.0002037,2]
[357162365,1743831046277,-321.76398118,0.0002037,2]
[357162366,1743831046287,-321.35947774,0.0002037,2]
[357162367,1743831046296,-277.23909868,0.0002037,2]
[357162368,1743831046307,-84.86708285,0.0002037,2]
[357162369,1743831046317,-500.0,0.0002037,2]
[357162370,1743831046326,-394.80474856,0.0002037,2]
[357162371,1743831046336,-311.32587664,0.0002037,2]
[357162372,1743831046346,-500.0,0.0002037,2]
[357162373,1743831046355,-500.0,0.0002037,2]
[357162374,1743831046364,-1305.60898757,0.00020376,2]
[357162375,1743831046377,-684.3999998,0.00020376,2]
[357162376,1743831047579,2022.41348676,0.00025,10]
[357162377,1743831080060,6005.02,0.000248,14]
[357162378,1743831165093,2033.56,0.000247,14]
[357162379,1743831165122,1500.82,0.000247,14]
[357162380,1743831210112,731.16,0.000247,14]
[357162381,1743831218079,200.0,0.00024658,15]
[357162382,1743831218137,5404.52,0.000247,14]
[357162383,1743831357196,4864.06,0.000247,14]
[357162384,1743831363139,1350.74,0.000247,14]
[357162385,1743831363558,1830.2,0.000247,14]
[357162386,1743831408480,658.05,0.000247,14]
[357162426,1743831496543,4377.66,0.000247,14]
[357162441,1743831561530,1215.66,0.000247,14]
[357162442,1743831562358,1647.18,0.000247,14]
[357162501,1743831608674,592.24,0.000247,14]
[357162771,1743831635580,3939.89,0.000247,14]
[357162868,1743831759988,1094.1,0.000248,14]
[357162869,1743831760401,1482.47,0.000248,14]
[357162871,1743831774781,3545.9,0.000248,14]
[357162874,1743831806523,533.02,0.000248,14]
[357162876,1743831913813,3191.31,0.000248,14]
[357162877,1743831959067,984.69,0.000248,14]
[357162878,1743831959440,1334.22,0.000248,14]
[357162880,1743832005662,479.72,0.000248,14]
[357162884,1743832051692,2872.18,0.000248,14]
[357162888,1743832158247,1200.8,0.000248,14]
[357162889,1743832158385,886.22,0.000248,14]
[357162890,1743832190472,2584.96,0.000248,14]
[357162891,1743832203986,431.75,0.000248,14]
[357162912,1743832232253,-525.08163855,0.00020298,2]
[357162914,1743832232266,-1009.99101263,0.00020376,2]
[357162915,1743832232276,-500.0,0.00020395,2]
[357162916,1743832232287,-332.08075464,0.00020395,2]
[357162917,1743832232298,-525.51931259,0.00020395,2]
[357162918,1743832232309,-553.10189773,0.00020395,2]
[357162919,1743832232319,-300.0,0.00020395,2]
[357162920,1743832232329,-456.2542739,0.00020396,2]
[357162921,1743832232357,-52.62425759,0.00020396,2]
[357162922,1743832232368,-500.0,0.00020396,2]
[357162923,1743832232378,-157.1852331,0.00020397,2]
[357163021,1743832240414,-13263.97739862,0.00020397,2]
[357163022,1743832240424,-530.89915105,0.00020397,2]
[357163023,1743832240434,-500.0,0.00020397,2]
[357163024,1743832240444,-562.72769041,0.00020397,2]
[357163025,1743832240454,-633.25803616,0.00020397,2]
[357163026,1743832240463,-585.36106939,0.00020397,2]
[357163027,1743832240472,-500.0,0.00020397,2]
[357163028,1743832240484,-530.99267422,0.00020397,2]
[357163029,1743832240495,-500.0,0.00020397,2]
[357163030,1743832240505,-529.47052453,0.00020397,2]
[357163031,1743832240514,-500.0,0.00020397,2]
[357163032,1743832240523,-528.96893474,0.00020398,2]
[357163033,1743832240534,-555.220758,0.00020398,2]
[357163034,1743832240543,-565.66769494,0.00020398,2]
[357163035,1743832240553,-572.9241959,0.00020398,2]
[357163036,1743832240566,-550.45904786,0.00020398,2]
[357163037,1743832240576,-398.32290689,0.00020398,2]
[357163038,1743832240586,-518.21544648,0.00020398,2]
[357163039,1743832240596,-541.75503723,0.00020398,2]
[357163040,1743832240606,-500.0,0.00020398,2]
[357163041,1743832240615,-522.23139203,0.00020398,2]
[357163042,1743832240625,-525.59290655,0.00020398,2]
[357163043,1743832240635,-500.0,0.00020398,2]
[357163044,1743832240644,-620.59573895,0.00020398,2]
[357163045,1743832240654,-500.0,0.00020398,2]
[357163046,1743832240663,-203.72315023,0.00020398,2]
[357163047,1743832240674,-540.96413815,0.00020398,2]
[357163048,1743832240684,-424.48669305,0.00020398,2]
[357163049,1743832240693,-539.13364436,0.00020398,2]
[357163050,1743832240703,-430.50089373,0.00020398,2]
[357163051,1743832240713,-510.24774739,0.00020398,2]
[357163052,1743832240726,-645.32500804,0.00020398,2]
[357163053,1743832240736,-524.09372103,0.00020398,2]
[357163054,1743832240746,-500.0,0.00020398,2]
[357163055,1743832240756,-514.73247605,0.00020398,2]
[357163056,1743832240767,-526.61550394,0.00020398,2]
[357163057,1743832240779,-529.97418279,0.00020398,2]
[357163058,1743832240789,-515.91287866,0.00020398,2]
[357163059,1743832240799,-516.49871148,0.00020398,2]
[357163060,1743832240809,-537.68634644,0.00020398,2]
[357163061,1743832240819,-517.30841359,0.00020398,2]
[357163062,1743832240829,-543.05678547,0.00020398,2]
[357163063,1743832240839,-538.53516931,0.00020398,2]
[357163064,1743832240849,-533.20472013,0.00020398,2]
[357163065,1743832240859,-514.13635671,0.00020398,2]
[357163066,1743832240868,-500.0,0.00020398,2]
[357163067,1743832240878,-540.12911221,0.00020398,2]
[357163068,1743832240888,-511.14661337,0.00020398,2]
[357163069,1743832240898,-515.368928,0.00020398,2]
[357163070,1743832240907,-346.56580423,0.00020398,2]
[357163071,1743832240917,-518.96171205,0.00020398,2]
[357163072,1743832240926,-537.8536956,0.00020398,2]
[357163073,1743832240936,-401.61271183,0.00020398,2]
[357163074,1743832240946,-575.65306546,0.00020398,2]
[357163075,1743832240955,-543.89254679,0.00020398,2]
[357163076,1743832240965,-536.54852496,0.00020398,2]
[357163077,1743832240974,-573.77287014,0.00020398,2]
[357163078,1743832240984,-545.5477785,0.00020398,2]
[357163079,1743832240994,-151.0,0.00020398,2]
[357163080,1743832241004,-151.0,0.00020398,2]
[357163081,1743832241013,-151.0,0.00020398,2]
[357163082,1743832241023,-151.0,0.00020398,2]
[357163083,1743832241033,-1959.469048,0.00020398,2]
[357163084,1743832241042,-1959.469048,0.00020398,2]
[357163085,1743832241052,-1959.469048,0.00020398,2]
[357163086,1743832241062,-1959.469048,0.00020398,2]
[357163087,1743832241072,-156.735983,0.00020398,2]
[357163088,1743832241082,-288.4815,0.00020398,2]
[357163089,1743832241091,-288.4815,0.00020398,2]
[357163090,1743832241101,-288.4815,0.00020398,2]
[357163091,1743832241111,-288.4815,0.00020398,2]
[357163092,1743832241120,-151.0,0.00020398,2]
[357163093,1743832241130,-151.0,0.00020398,2]
[357163094,1743832241139,-151.0,0.00020398,2]
[357163095,1743832241149,-151.0,0.00020398,2]
[357163096,1743832241158,-151.0,0.00020398,2]
[357163097,1743832241168,-172.039765,0.00020398,2]
[357163098,1743832241179,-151.0,0.00020398,2]
[357163099,1743832241189,-151.0,0.00020398,2]
[357163100,1743832241199,-151.0,0.00020398,2]
[357163101,1743832241209,-151.0,0.00020398,2]
[357163102,1743832241218,-151.0,0.00020398,2]
[357163103,1743832241228,-151.0,0.00020398,2]
[357163104,1743832241239,-180.140223,0.00020398,2]
[357163105,1743832241249,-151.456729,0.00020548,2]
[357163106,1743832241258,-373.37078821,0.00020645,2]
[357163107,1743832241268,-615.68,0.00020669,2]
[357163108,1743832241278,-229.08779415,0.00020669,2]
[357163109,1743832241288,-343.3117671,0.00020669,2]
[357163110,1743832241298,-151.0,0.00020669,2]
[357163111,1743832241308,-151.0,0.00020669,2]
[357163113,1743832241318,-151.0,0.00020669,2]
[357163114,1743832241327,-252.17958114,0.0002067,3]
[357163115,1743832241338,-356.49630502,0.0002067,3]
[357163116,1743832241348,-539.09683594,0.0002067,2]
[357163117,1743832241358,-494.31588274,0.0002067,2]
[357163118,1743832241368,-352.29342464,0.0002067,2]
[357163119,1743832241378,-220.11211189,0.0002067,2]
[357163120,1743832241389,-500.0,0.0002067,2]
[357163121,1743832241399,-343.50967709,0.0002067,2]
[357163122,1743832241409,-190.65345754,0.0002067,2]
[357163123,1743832241418,-3223.13231435,0.0002067,2]
[357163135,1743832246271,-277.744114,0.00020398,2]
[357163136,1743832246281,-151.0,0.00020398,2]
[357163137,1743832246291,-151.0,0.00020398,2]
[357163138,1743832246301,-2240.34768565,0.0002067,2]
[357163139,1743832246310,-798.7,0.0002067,2]
[357163140,1743832246320,-151.0,0.0002067,2]
[357163141,1743832246330,-151.0,0.0002067,2]
[357163142,1743832246340,-238.71296,0.0002067,2]
[357163143,1743832246350,-151.0,0.0002067,2]
[357163144,1743832246359,-151.0,0.0002067,2]
[357163145,1743832246368,-1959.469048,0.0002067,2]
[357163146,1743832246378,-1959.469048,0.0002067,2]
[357163147,1743832246387,-1959.469048,0.0002067,2]
[357163148,1743832246397,-1959.469048,0.0002067,2]
[357163149,1743832246406,-288.4815,0.0002067,2]
[357163150,1743832246415,-288.4815,0.0002067,2]
[357163151,1743832246425,-288.4815,0.0002067,2]
[357163152,1743832246435,-288.4815,0.0002067,2]
[357163153,1743832246444,-288.4815,0.0002067,2]
[357163154,1743832246453,-288.4815,0.0002067,2]
[357163155,1743832246463,-412.10951441,0.0002067,2]
[357163156,1743832246473,-151.0,0.0002067,2]
[357163157,1743832246486,-151.0,0.0002067,2]
[357163158,1743832246495,-221.283592,0.0002067,2]
[357163229,1743832329797,2326.47,0.000248,14]
[357163230,1743832338504,200.0,0.00024658,15]
[357163231,1743832356951,1080.72,0.000248,14]
[357163232,1743832357306,797.59,0.000248,14]
[357163233,1743832401910,388.57,0.000248,14]
[357163234,1743832468711,2326.47,0.000248,14]
[357163236,1743832555499,972.64,0.000247,14]
[357163237,1743832556600,717.84,0.000247,14]
[357163238,1743832600515,349.71,0.000247,14]
[357163239,1743832606278,1861.17,0.000247,14]
[357163240,1743832744818,1675.06,0.000248,14]
[357163241,1743832754277,875.38,0.000248,14]
[357163242,1743832754429,646.05,0.000248,14]
[357163243,1743832799413,314.74,0.000248,14]
[357163244,1743832883395,1507.55,0.000248,14]
[357163245,1743832952884,581.45,0.000248,14]
[357163246,1743832952915,787.84,0.000248,14]
[357163247,1743832998068,283.27,0.000248,14]
[357163248,1743833022709,1356.8,0.000248,14]
[357163249,1743833151842,709.06,0.000248,14]
[357163250,1743833152495,523.3,0.000248,14]
[357163251,1743833160687,1221.12,0.000248,14]
[357163252,1743833196141,254.94,0.000248,14]
[357163253,1743833292611,152.30793112,0.00024713,14]
[357163254,1743833299456,435.83713657,0.000248,14]
[357163267,1743833432317,-193.24,0.0001999,3]
[357163268,1743833432327,-579.72,0.0001999,3]
[357163269,1743833432337,-527.17322486,0.00019999,2]
[357163270,1743833432347,-500.0,0.00019999,2]
[357163271,1743833432356,-296.43441977,0.0002,3]
[357163272,1743833432369,-27092.12605993,0.0002,2]
[357163289,1743833438192,-4375.36511288,0.0002,2]
[357163290,1743833438204,-10049.79290445,0.0002,2]
[357163291,1743833438249,-892.36,0.0002,2]
[357163294,1743833438261,-4091.38821943,0.0002,2]
[357163421,1743833443284,-18090.45303596,0.0002,2]
[357163422,1743833443297,-8831.59440767,0.0002,2]
[357163423,1743833444307,1544.43788132,0.00023,10]
[357163959,1743834518819,460.67428693,9e-05,2]
[357163988,1743834632438,-215.5361204,0.00017992,2]
[357163989,1743834632449,-330.96950773,0.000189,2]
[357163990,1743834632501,-807.5591545,0.000189,2]
[357163991,1743834632563,-1409.79541203,0.000189,2]
[357163992,1743834632575,-300.0,0.00018968,2]
[357163993,1743834632585,-6773.52722069,0.00018969,2]
[357164041,1743835832614,-183.2871236,0.00017973,2]
[357164043,1743835832624,-3727.2111597,0.00017979,2]
[357164044,1743835832633,-165.742982,0.00017992,2]
[357164045,1743835832643,-646.83605747,0.00018873,2]
[357164046,1743835832653,-213.00968007,0.00018899,2]
[357164047,1743835832662,-2716.92661224,0.000189,2]
[357164048,1743835832671,-300.0,0.00018971,2]
[357164049,1743835832681,-296.43441977,0.00018972,3]
[357164050,1743835832690,-501.36,0.00018972,2]
[357164051,1743835832699,-500.0,0.00018972,2]
[357164052,1743835832709,-527.891829,0.00018972,2]
[357164053,1743835832719,-527.91791009,0.00018972,2]
[357164054,1743835832728,-538.27511778,0.00018972,2]
[357164055,1743835832737,-500.0,0.00018972,2]
[357164056,1743835832747,-505.99114529,0.00018972,2]
[357164057,1743835832756,-513.08178184,0.00018972,2]
[357164058,1743835832766,-521.845001,0.00018972,2]
[357164059,1743835832775,-507.77584284,0.00018972,2]
[357164060,1743835832785,-504.13670894,0.00018972,2]
[357164061,1743835832794,-505.72100758,0.00018972,2]
[357164062,1743835832803,-504.57710622,0.00018972,2]
[357164063,1743835832812,-502.92553493,0.00018972,2]
[357164064,1743835832822,-502.89980195,0.00018972,2]
[357164065,1743835832831,-508.04937384,0.00018972,2]
[357164066,1743835832840,-504.17994045,0.00018972,2]
[357164067,1743835832849,-502.38011561,0.00018972,2]
[357164068,1743835832859,-502.39253075,0.00018972,2]
[357164069,1743835832868,-502.55191958,0.00018972,2]
[357164070,1743835832878,-500.75038353,0.00018972,2]
[357164071,1743835832887,-500.80070773,0.00018972,2]
[357164072,1743835832897,-500.0,0.00018972,2]
[357164073,1743835832906,-502.70185523,0.00018972,2]
[357164074,1743835832915,-508.03438432,0.00018972,2]
[357164075,1743835832926,-502.81495802,0.00018972,2]
[357164076,1743835832935,-501.27026591,0.00018972,2]
[357164078,1743835832945,-500.0,0.00018972,2]
[357164080,1743835832954,-532.50629162,0.00018972,2]
[357164082,1743835832964,-501.31896576,0.00018972,2]
[357164084,1743835832973,-503.66293869,0.00018972,2]
[357164085,1743835832982,-503.7280189,0.00018972,2]
[357164086,1743835832991,-501.81025504,0.00018972,2]
[357164087,1743835833000,-500.0,0.00018972,2]
[357164088,1743835833010,-505.85354605,0.00018972,2]
[357164089,1743835833020,-503.07561491,0.00018972,2]
[357164090,1743835833031,-502.61599166,0.00018972,2]
[357164091,1743835833043,-502.96328756,0.00018972,2]
[357164092,1743835833052,-5445.66069039,0.00018972,2]
[357164094,1743835838483,-500.0,0.00018972,2]
[357164095,1743835838494,-3193.02330232,0.00018972,2]
[357164096,1743835838505,-174.38190682,0.00018973,2]
[357164097,1743835838515,-500.0,0.00018973,2]
[357164098,1743835838525,-500.0,0.00018973,2]
[357164099,1743835838535,-505.80105704,0.00018973,2]
[357164100,1743835838544,-501.83857914,0.00018973,2]
[357164101,1743835838554,-500.0,0.00018973,2]
[357164102,1743835838563,-500.0,0.00018973,2]
[357164103,1743835838573,-500.0,0.00018973,2]
[357164104,1743835838583,-504.05374448,0.00018973,2]
[357164105,1743835838592,-500.0,0.00018973,2]
[357164106,1743835838602,-521.00103121,0.00018973,2]
[357164107,1743835838611,-500.0,0.00018973,2]
[357164108,1743835838620,-356.60774456,0.00018989,2]
[357164109,1743835838630,-713.5,0.00018989,3]
[357164110,1743835838639,-500.0,0.00018998,2]
[357164111,1743835838649,-250.0,0.00018998,2]
[357164112,1743835838659,-312.53608057,0.00018998,2]
[357164113,1743835838669,-500.0,0.00018999,2]
[357164114,1743835838678,-649.68,0.00018999,2]
[357164115,1743835838688,-500.0,0.00018999,2]
[357164116,1743835838697,-500.0,0.00018999,2]